bitfinex/quotes_SOLUSD_20241105
["timestamp","ask_amount","ask_price","bid_price","bid_amount"]
[1730824577331,43.95251279,168.16,168.1,49.90111279]
[1730824577534,43.95251279,168.14,168.1,5.9486]
[1730824577739,43.95251279,168.15,168.09,58.82541279]
[1730824577915,43.95251279,168.15,168.08,0.480972]
[1730824577916,23.776884,168.15,168.08,0.480972]
[1730824578121,43.95251279,168.14,168.09,43.95251279]
[1730824578336,43.95251279,168.14,168.08,15.354772]
[1730824578652,43.95251279,168.14,168.08,44.43348479]
[1730824578832,43.95251279,168.14,168.08,50.38288479]
[1730824579219,43.95251279,168.14,168.08,65.25668479]
[1730824579745,43.95251279,168.17,168.11,43.95251279]
[1730824580052,43.95251279,168.15,168.09,43.95251279]
[1730824580338,70.0,168.2,168.08,21.304172]
[1730824580339,43.95251279,168.17,168.11,43.95251279]
[1730824580817,43.95251279,168.18,168.11,43.95251279]
[1730824581115,43.95251279,168.18,168.12,43.95251279]
[1730824581318,43.95251279,168.18,168.12,49.90051279]
[1730824581519,43.95251279,168.19,168.13,43.95251279]
[1730824581823,43.95251279,168.21,168.14,43.95251279]
[1730824582137,43.95251279,168.18,168.12,14.8703]
[1730824582327,43.95251279,168.2,168.13,43.95251279]
[1730824582528,43.95251279,168.21,168.15,43.95251279]
[1730824582823,43.95251279,168.22,168.16,43.95251279]
[1730824583026,43.95251279,168.22,168.12,14.8703]
[1730824583027,43.95251279,168.22,168.15,43.95251279]
[1730824583255,43.95251279,168.19,168.13,43.95251279]
[1730824583542,43.95251279,168.2,168.14,43.95251279]
[1730824583741,43.95251279,168.21,168.14,43.95251279]
[1730824584036,43.95251279,168.21,168.15,43.95251279]
[1730824584827,43.95251279,168.19,168.13,64.76951279]
[1730824585433,27.18435952,168.19,168.13,48.00135952]
[1730824585637,5.9453,168.2,168.13,14.8694]
[1730824585638,27.18435952,168.16,168.13,14.8694]
[1730824585842,27.18435952,168.18,168.13,14.8694]
[1730824586039,5.9447,168.22,168.14,27.18435952]
[1730824586345,27.18435952,168.18,168.13,14.8694]
[1730824586521,27.18435952,168.19,168.13,14.8694]
[1730824586928,33.12985952,168.2,168.13,48.00145952]
[1730824587127,23.776884,168.19,168.13,48.00145952]
[1730824587348,33.12985952,168.2,168.14,27.18435952]
[1730824587349,27.18435952,168.2,168.14,27.18435952]
[1730824587648,27.18435952,168.22,168.15,27.18435952]
[1730824587948,27.18435952,168.21,168.14,27.18435952]
[1730824588243,27.18435952,168.2,168.13,48.00145952]
[1730824588421,27.18435952,168.23,168.16,27.18435952]
[1730824588626,27.18435952,168.24,168.17,27.18435952]
[1730824588839,27.18435952,168.22,168.16,27.18435952]
[1730824589028,33.12855952,168.23,168.16,33.13095952]
[1730824589427,27.18435952,168.27,168.2,27.18435952]
[1730824589642,27.18435952,168.27,168.21,27.18435952]
[1730824590358,5.9417,168.3,168.22,27.18435952]
[1730824590533,27.18435952,168.29,168.23,27.18435952]
[1730824591028,27.18435952,168.31,168.25,27.18435952]
[1730824591222,27.18435952,168.32,168.26,27.18435952]
[1730824591724,27.18435952,168.33,168.27,27.18435952]
[1730824591930,5.9403,168.35,168.2,20.888491]
[1730824591931,27.18435952,168.34,168.28,27.18435952]
[1730824592225,27.18435952,168.4,168.33,27.18435952]
[1730824592448,33.38525952,168.41,168.35,27.18435952]
[1730824592639,33.38525952,168.41,168.33,27.18435952]
[1730824592640,12.1388,168.41,168.33,27.18435952]
[1730824592849,70.1,168.4,168.28,14.8561]
[1730824593026,70.0,168.4,168.28,14.8561]
[1730824593230,70.1,168.4,168.28,14.8561]
[1730824593560,70.0,168.4,168.28,14.8561]
[1730824594061,27.18435952,168.35,168.29,27.18435952]
[1730824594562,23.776884,168.51,168.3,0.1]
[1730824594762,55.64,168.53,168.29,27.26435052]
[1730824594763,27.18435952,168.34,168.29,27.26435052]
[1730824594943,27.18435952,168.35,168.31,0.179991]
[1730824595273,27.18435952,168.39,168.34,0.179991]
[1730824595561,70.0,168.47,168.35,0.179991]
[1730824595962,5.9361,168.46,168.35,0.079991]
[1730824596270,5.9361,168.46,168.35,0.179991]
[1730824596271,20.7764,168.46,168.35,0.179991]
[1730824596565,20.7764,168.46,168.33,20.7922]
[1730824596566,44.07344123,168.43,168.39,0.079991]
[1730824596763,44.07344123,168.48,168.4,0.079991]
[1730824596764,44.07344123,168.44,168.4,0.079991]
[1730824597065,44.07344123,168.44,168.4,0.1]
[1730824597268,44.07344123,168.44,168.4,0.079991]
[1730824597564,44.07344123,168.44,168.4,0.179991]
[1730824597738,44.14899753,168.44,168.4,0.179991]
[1730824597942,0.0755563,168.44,168.43,50.19053223]
[1730824598753,0.0755563,168.44,168.43,44.25343223]
[1730824599556,0.0755563,168.44,168.43,0.079991]
[1730824599749,44.14899753,168.44,168.39,0.179991]
[1730824599950,44.14899753,168.44,168.41,0.179991]
[1730824600150,0.0755563,168.44,168.4,0.179991]
[1730824600452,0.0755563,168.44,168.41,0.079991]
[1730824600652,44.14899753,168.44,168.41,0.079991]
[1730824600854,44.14899753,168.44,168.39,0.1]
[1730824600855,44.14899753,168.44,168.4,0.079991]
[1730824601252,44.07344123,168.43,168.4,0.079991]
[1730824601459,44.14899753,168.44,168.4,0.079991]
[1730824601668,0.0755563,168.44,168.4,0.079991]
[1730824601863,44.14899753,168.44,168.4,0.079991]
[1730824602175,44.14899753,168.44,168.38,44.25343223]
[1730824602468,44.07344123,168.43,168.38,0.179991]
[1730824602669,44.07344123,168.43,168.38,0.1]
[1730824602968,44.07344123,168.42,168.38,0.079991]
[1730824603176,44.14899753,168.44,168.39,0.079991]
[1730824603346,44.14899753,168.44,168.38,44.15343223]
[1730824603546,44.07344123,168.43,168.37,65.04053223]
[1730824603747,44.07344123,168.43,168.38,0.079991]
[1730824603947,44.07344123,168.43,168.37,65.04053223]
[1730824604162,44.07344123,168.43,168.38,0.079991]
[1730824604352,44.07344123,168.42,168.39,0.079991]
[1730824604550,44.14899753,168.44,168.39,0.079991]
[1730824604954,44.07344123,168.43,168.39,0.079991]
[1730824605371,44.14899753,168.44,168.39,0.079991]
[1730824605558,44.07344123,168.43,168.37,59.02124123]
[1730824605774,44.07344123,168.42,168.38,0.079991]
[1730824606080,0.0755563,168.44,168.39,44.15343223]
[1730824606367,6.0123563,168.44,168.4,44.07344123]
[1730824606570,50.08579753,168.44,168.39,44.15343223]
[1730824607165,44.07344123,168.43,168.39,0.079991]
[1730824607767,44.07344123,168.4,168.37,0.1]
[1730824608771,67.85032523,168.41,168.37,0.1]
[1730824608975,44.07344123,168.4,168.36,0.079991]
[1730824609146,44.07344123,168.39,168.36,0.079991]
[1730824609569,44.07344123,168.4,168.36,0.079991]
[1730824609751,6.4236563,168.44,168.35,0.1]
[1730824609752,50.49709753,168.44,168.39,0.079991]
[1730824610072,44.07344123,168.43,168.39,0.1]
[1730824610273,0.0755563,168.44,168.4,0.079991]
[1730824610651,6.0124563,168.44,168.4,0.079991]
[1730824610858,50.08589753,168.44,168.38,44.15343223]
[1730824611045,50.08589753,168.44,168.4,0.079991]
[1730824611573,6.0124563,168.44,168.4,0.079991]
[1730824611748,0.0755563,168.44,168.43,0.079991]
[1730824611945,0.0755563,168.44,168.43,44.25343223]
[1730824613352,0.3094535,168.48,168.47,0.079991]
[1730824613557,0.3094535,168.48,168.47,88.32687346]
[1730824613757,0.3094535,168.48,168.47,50.18913223]
[1730824614367,0.3094535,168.48,168.47,94.26257346]
[1730824614678,0.3094535,168.48,168.47,50.18913223]
[1730824614879,0.3094535,168.48,168.47,94.26257346]
[1730824617368,0.3094535,168.48,168.47,60.24625298]
[1730824618663,0.3094535,168.48,168.47,33.18097199]
[1730824619272,0.3094535,168.48,168.47,27.24527199]
[1730824619473,0.3094535,168.48,168.47,60.24625298]
[1730824620276,0.3094535,168.48,168.47,33.18097199]
[1730824621589,0.3094535,168.48,168.47,60.24625298]
[1730824621792,0.3094535,168.57,168.47,60.34625298]
[1730824621965,0.3094535,168.57,168.56,27.24527199]
[1730824622366,6.2416535,168.57,168.53,27.14527199]
[1730824622682,27.06528099,168.56,168.52,0.079991]
[1730824622983,0.3094535,168.57,168.54,0.079991]
[1730824623169,0.3094535,168.57,168.54,0.1]
[1730824623374,0.3094535,168.57,168.52,27.14527199]
[1730824623687,33.30713449,168.57,168.53,0.179991]
[1730824623890,0.3094535,168.57,168.53,27.24527199]
[1730824624067,0.3094535,168.57,168.53,27.14527199]
[1730824624268,27.06528099,168.54,168.49,0.079991]
[1730824624494,27.06528099,168.53,168.51,0.079991]
[1730824624660,23.776884,168.46,168.34,6.1920762]
[1730824624860,27.06528099,168.42,168.35,27.06528099]
[1730824625086,23.776884,168.46,168.34,14.85]
[1730824625470,27.06528099,168.42,168.36,27.06528099]
[1730824625988,27.06528099,168.43,168.36,27.06528099]
[1730824626175,27.06528099,168.42,168.36,27.06528099]
[1730824626575,27.06528099,168.41,168.35,27.06528099]
[1730824626885,27.06528099,168.42,168.36,27.06528099]
[1730824627070,27.06528099,168.41,168.35,27.06528099]
[1730824627264,27.06528099,168.39,168.34,14.85]
[1730824627461,27.06528099,168.39,168.33,27.06528099]
[1730824627669,27.06528099,168.4,168.34,27.06528099]
[1730824627866,27.06528099,168.4,168.3,6.19640844]
[1730824627867,48.94148099,168.4,168.3,6.19640844]
[1730824628084,48.94148099,168.4,168.27,0.3094535]
[1730824628085,23.776884,168.39,168.29,27.06528099]
[1730824628270,23.776884,168.39,168.27,21.1090535]
[1730824628473,27.06528099,168.38,168.32,27.06528099]
[1730824628687,23.776884,168.37,168.32,27.06528099]
[1730824629087,29.716284,168.37,168.31,27.06528099]
[1730824629296,56.78156499,168.37,168.3,27.06528099]
[1730824629472,27.06528099,168.36,168.29,27.06528099]
[1730824629883,27.06528099,168.36,168.3,27.06528099]
[1730824630470,27.06528099,168.36,168.28,5.9422]
[1730824630471,27.06528099,168.35,168.28,33.00748099]
[1730824630688,27.06528099,168.35,168.27,15.1664535]
[1730824630689,27.06528099,168.32,168.27,0.3094535]
[1730824631188,27.06528099,168.31,168.27,0.3094535]
[1730824631605,27.06528099,168.29,168.27,0.3094535]
[1730824631972,27.06528099,168.3,168.27,0.3094535]
[1730824632175,27.06528099,168.32,168.27,0.3094535]
[1730824632401,27.06528099,168.33,168.27,33.31733449]
[1730824632974,27.06528099,168.34,168.27,33.31733449]
[1730824633202,27.06528099,168.35,168.27,21.1090535]
[1730824633391,27.06528099,168.35,168.28,27.06528099]
[1730824633698,27.06528099,168.36,168.3,27.06528099]
[1730824633878,27.06528099,168.35,168.29,27.06528099]
[1730824634073,27.06528099,168.36,168.3,27.06528099]
[1730824634272,27.06528099,168.35,168.3,27.06528099]
[1730824634493,27.06528099,168.33,168.27,48.17433449]
[1730824634883,27.06528099,168.32,168.27,21.1090535]
[1730824635201,27.06528099,168.31,168.27,15.1664535]
[1730824635575,27.06528099,168.33,168.27,48.17453449]
[1730824635892,27.06528099,168.31,168.27,0.3094535]
[1730824636094,27.06528099,168.29,168.27,0.3094535]
[1730824636301,27.06528099,168.28,168.27,0.3094535]
[1730824637771,27.06528099,168.31,168.27,0.3094535]
[1730824637971,27.06528099,168.33,168.27,48.17443449]
[1730824638378,27.06528099,168.3,168.27,0.3094535]
[1730824638578,27.06528099,168.28,168.27,0.3094535]
[1730824640506,5.9421,168.29,168.27,0.3094535]
[1730824640507,27.06528099,168.29,168.27,0.3094535]
[1730824640890,50.84216499,168.28,168.27,0.3094535]
[1730824641092,56.78456499,168.28,168.27,0.3094535]
[1730824642821,27.06528099,168.28,168.27,0.3094535]
[1730824644698,50.84216499,168.28,168.27,0.3094535]
[1730824644894,56.78456499,168.28,168.27,0.3094535]
[1730824645095,27.06528099,168.28,168.27,0.3094535]
[1730824645507,56.78456499,168.28,168.27,0.3094535]
[1730824646300,27.06528099,168.28,168.27,0.3094535]
[1730824646500,27.06528099,168.32,168.27,0.3094535]
[1730824646501,27.06528099,168.29,168.27,0.3094535]
[1730824646905,27.06528099,168.28,168.27,0.3094535]
[1730824648703,33.00768099,168.28,168.27,0.3094535]
[1730824650112,56.78456499,168.28,168.27,0.3094535]
[1730824650717,33.00768099,168.28,168.27,0.3094535]
[1730824650918,56.78456499,168.28,168.27,0.3094535]
[1730824652507,56.88456499,168.28,168.27,5.35e-05]
[1730824652912,56.78456499,168.28,168.27,5.35e-05]
[1730824653728,56.88456499,168.28,168.27,5.35e-05]
[1730824653925,56.78456499,168.28,168.27,5.35e-05]
[1730824654436,33.00768099,168.28,168.27,5.35e-05]
[1730824655800,56.78456499,168.28,168.27,5.35e-05]
[1730824656417,56.88456499,168.28,168.27,5.35e-05]
[1730824658303,23.776884,168.27,168.22,0.1861215]
[1730824658503,27.06528099,168.23,168.22,0.1861215]
[1730824658802,50.84216499,168.23,168.22,0.1861215]
[1730824659207,27.06528099,168.23,168.22,0.1861215]
[1730824659929,33.00948099,168.23,168.22,0.1861215]
[1730824660434,56.78636499,168.23,168.22,0.1861215]
[1730824661320,46.70753754,168.23,168.22,0.1861215]
[1730824663128,16.98645354,168.24,168.22,0.1861215]
[1730824663437,16.98645354,168.25,168.22,0.1861215]
[1730824664132,16.98645354,168.24,168.22,0.1861215]
[1730824664325,16.98645354,168.23,168.22,0.1861215]
[1730824664513,22.93055354,168.24,168.22,0.1861215]
[1730824665214,40.76333754,168.23,168.22,0.1861215]
[1730824666240,46.70753754,168.23,168.22,0.1861215]
[1730824666946,22.93025354,168.24,168.22,0.1861215]
[1730824667309,16.98645354,168.24,168.22,0.1861215]
[1730824667539,16.98645354,168.26,168.22,0.1861215]
[1730824668507,16.98645354,168.27,168.22,0.1861215]
[1730824668711,5.9414,168.31,168.25,16.98645354]
[1730824668712,22.92785354,168.31,168.25,16.98645354]
[1730824668920,16.98645354,168.3,168.24,16.98645354]
[1730824669831,22.92815354,168.3,168.24,22.93015354]
[1730824670033,16.98645354,168.28,168.22,37.97827504]
[1730824671232,16.98645354,168.26,168.22,0.1861215]
[1730824671619,22.92895354,168.28,168.22,17.17257504]
[1730824671938,22.92835354,168.3,168.24,16.98645354]
[1730824672639,16.98645354,168.31,168.25,16.98645354]
[1730824673138,22.92715354,168.33,168.27,16.98645354]
[1730824673333,5.9407,168.33,168.28,16.98645354]
[1730824673538,16.98645354,168.35,168.29,16.98645354]
[1730824673722,16.98645354,168.36,168.3,16.98645354]
[1730824673925,16.98645354,168.37,168.31,16.98645354]
[1730824674114,16.98645354,168.37,168.26,37.3089]
[1730824674115,22.92505354,168.39,168.33,16.98645354]
[1730824674314,16.98645354,168.41,168.35,16.98645354]
[1730824674823,16.98645354,168.4,168.34,16.98645354]
[1730824675332,0.1254786,168.43,168.38,27.11435171]
[1730824675531,0.1254786,168.43,168.4,27.11435171]
[1730824675718,0.1254786,168.43,168.42,27.11435171]
[1730824675912,0.1254786,168.43,168.41,27.11435171]
[1730824676118,0.1254786,168.43,168.38,6.4244]
[1730824676837,0.1254786,168.43,168.39,27.11435171]
[1730824677219,0.1254786,168.43,168.4,27.11435171]
[1730824677540,0.1254786,168.43,168.39,27.11435171]
[1730824677847,0.1254786,168.43,168.38,12.363]
[1730824677848,0.1254786,168.43,168.38,33.53875171]
[1730824678212,0.1254786,168.43,168.37,35.9616]
[1730824678213,56.95411431,168.43,168.37,27.11435171]
[1730824678428,0.1254786,168.43,168.39,27.11435171]
[1730824678733,27.11435171,168.42,168.36,27.11435171]
[1730824678936,0.1254786,168.43,168.37,20.1]
[1730824679141,0.1254786,168.43,168.38,5.9389]
[1730824679319,0.1254786,168.43,168.4,0.1]
[1730824679739,0.1254786,168.43,168.39,20.0]
[1730824680121,0.1254786,168.43,168.42,27.11435171]
[1730824682727,0.1254786,168.43,168.42,47.11435171]
[1730824686235,0.1254786,168.43,168.42,53.05185171]
[1730824687152,0.1254786,168.43,168.42,27.11435171]
[1730824689654,0.1254786,168.43,168.41,47.89655171]
[1730824689951,0.1254786,168.43,168.42,27.11435171]
[1730824690151,0.1254786,168.43,168.41,41.95875171]
[1730824690753,0.1254786,168.43,168.42,27.11435171]
[1730824691355,0.1,168.41,168.22,0.2861215]
[1730824691549,27.11435171,168.35,168.27,27.11435171]
[1730824691849,27.11435171,168.33,168.26,27.11435171]
[1730824692269,27.11435171,168.32,168.25,27.11435171]
[1730824692557,27.11435171,168.3,168.25,14.8588]
[1730824693339,27.11435171,168.29,168.25,14.8588]
[1730824693550,27.11435171,168.29,168.23,27.11435171]
[1730824693752,27.11435171,168.28,168.23,5.944]
[1730824694063,27.11435171,168.29,168.23,5.944]
[1730824694359,5.9409,168.33,168.27,27.11435171]
[1730824694542,27.11435171,168.33,168.27,27.11435171]
[1730824694739,27.11435171,168.32,168.25,27.11435171]
[1730824694935,5.9396,168.36,168.23,14.8606]
[1730824694936,27.11435171,168.28,168.23,14.8606]
[1730824695135,23.776884,168.3,168.23,20.8048]
[1730824695343,27.11435171,168.31,168.24,27.11435171]
[1730824695542,27.11435171,168.3,168.24,27.11435171]
[1730824695740,27.11435171,168.32,168.22,0.1861215]
[1730824695954,27.11435171,168.29,168.22,33.24497321]
[1730824696264,27.11435171,168.28,168.22,33.24497321]
[1730824696462,50.89123571,168.31,168.25,27.11435171]
[1730824696645,27.11435171,168.28,168.22,15.0475215]
[1730824697365,27.11435171,168.27,168.22,15.0475215]
[1730824697551,27.11435171,168.26,168.22,0.1861215]
[1730824697742,27.11435171,168.24,168.22,0.1861215]
[1730824698061,27.11435171,168.23,168.22,0.1861215]
[1730824698254,50.89123571,168.23,168.22,0.1861215]
[1730824698666,76.83543571,168.23,168.22,0.1861215]
[1730824698962,56.83543571,168.23,168.22,0.1861215]
[1730824699468,76.83543571,168.23,168.22,0.1861215]
[1730824699765,23.776884,168.22,168.14,0.3116001]
[1730824700065,27.11435171,168.16,168.14,0.3116001]
[1730824700369,27.11435171,168.18,168.14,0.3116001]
[1730824700665,27.11435171,168.2,168.14,27.42595181]
[1730824700869,27.11435171,168.21,168.15,27.11435171]
[1730824701042,27.11435171,168.17,168.14,0.3116001]
[1730824701236,23.776884,168.21,168.14,0.3116001]
[1730824701237,27.11435171,168.16,168.14,0.3116001]
[1730824701639,27.11435171,168.2,168.14,27.42595181]
[1730824701851,27.11435171,168.2,168.14,33.37325181]
[1730824703366,27.11435171,168.16,168.14,0.3116001]
[1730824703678,27.11435171,168.17,168.14,0.3116001]
[1730824703965,27.11435171,168.18,168.14,0.3116001]
[1730824704173,20.8048,168.23,168.14,6.2589001]
[1730824704174,27.11435171,168.19,168.14,6.2589001]
[1730824704461,27.11435171,168.2,168.14,48.24185181]
[1730824704667,5.9442,168.23,168.16,27.11435171]
[1730824704668,27.11435171,168.22,168.16,27.11435171]
[1730824704963,27.11435171,168.19,168.15,5.9468]
[1730824705369,27.11435171,168.24,168.14,15.1801001]
[1730824705370,27.11435171,168.18,168.14,15.1801001]
[1730824705663,27.11435171,168.19,168.14,0.3116001]
[1730824705872,27.11435171,168.17,168.14,0.3116001]
[1730824706240,27.11435171,168.16,168.14,0.3116001]
[1730824706640,27.31435171,168.24,168.14,0.3116001]
[1730824706641,27.11435171,168.18,168.14,0.3116001]
[1730824707061,27.11435171,168.17,168.14,0.3116001]
[1730824708063,33.06075171,168.17,168.14,0.3116001]
[1730824708261,5.9464,168.17,168.14,0.3116001]
[1730824708761,33.06025171,168.19,168.14,0.3116001]
[1730824708965,27.11435171,168.22,168.16,27.11435171]
[1730824709177,27.11435171,168.23,168.16,27.11435171]
[1730824709463,27.11435171,168.2,168.14,33.37325181]
[1730824709991,27.11435171,168.2,168.14,48.24175181]
[1730824710173,27.11435171,168.18,168.14,0.3116001]
[1730824710462,5.9442,168.23,168.14,0.3116001]
[1730824710650,27.11435171,168.22,168.16,27.11435171]
[1730824710849,27.11435171,168.23,168.17,27.11435171]
[1730824711057,6.1643,168.26,168.14,21.1274001]
[1730824711262,27.11435171,168.22,168.17,27.11435171]
[1730824711775,27.11435171,168.23,168.17,27.11435171]
[1730824711948,27.11435171,168.27,168.21,27.11435171]
[1730824712155,16.2986,168.29,168.18,14.865]
[1730824712156,27.11435171,168.29,168.23,27.11435171]
[1730824712749,27.11435171,168.28,168.22,27.11435171]
[1730824713153,27.11435171,168.28,168.23,5.9442]
[1730824713353,27.11435171,168.27,168.23,5.9442]
[1730824714069,27.11435171,168.26,168.22,14.8614]
[1730824714469,26.95725451,168.23,168.18,14.8646]
[1730824714776,27.11435171,168.19,168.14,0.3116001]
[1730824715095,27.11435171,168.19,168.14,6.2590001]
[1730824715462,27.11435171,168.18,168.14,0.3116001]
[1730824715792,27.11435171,168.16,168.14,0.3116001]
[1730824716584,27.11435171,168.17,168.14,0.3116001]
[1730824716787,27.11435171,168.2,168.14,6.2588001]
[1730824716975,43.776884,168.2,168.14,0.3116001]
[1730824717174,43.776884,168.2,168.14,15.1801001]
[1730824717371,23.776884,168.16,168.14,0.3116001]
[1730824717590,70.89123571,168.15,168.14,0.3116001]
[1730824719671,27.11435171,168.15,168.14,0.3116001]
[1730824719879,27.11435171,168.18,168.14,0.3116001]
[1730824720286,20.8059,168.22,168.14,0.3116001]
[1730824720589,27.11435171,168.16,168.14,0.3116001]
[1730824721570,6.41,168.23,168.14,0.3116001]
[1730824721571,27.11435171,168.18,168.14,0.3116001]
[1730824721785,27.11435171,168.16,168.14,0.3116001]
[1730824721989,27.11435171,168.17,168.14,0.3116001]
[1730824722290,47.11435171,168.15,168.14,0.3116001]
[1730824722797,70.89123571,168.15,168.14,0.3116001]
[1730824723372,76.83823571,168.15,168.14,0.3116001]
[1730824724199,50.89123571,168.15,168.14,0.3116001]
[1730824724390,27.11435171,168.16,168.14,0.3116001]
[1730824725103,27.11435171,168.17,168.14,0.3116001]
[1730824725397,27.11435171,168.18,168.14,0.3116001]
[1730824726301,21.2708,168.23,168.14,0.3116001]
[1730824726302,12.3542,168.23,168.15,27.11435171]
[1730824726503,27.11435171,168.19,168.14,21.1274001]
[1730824726702,27.11435171,168.19,168.14,21.1275001]
[1730824726885,27.11435171,168.17,168.14,0.3116001]
[1730824727088,27.11435171,168.16,168.14,0.3116001]
[1730824727395,27.11435171,168.15,168.14,0.3116001]
[1730824727781,50.89123571,168.15,168.14,0.3116001]
[1730824728205,27.11435171,168.16,168.14,0.3116001]
[1730824728693,27.11435171,168.15,168.14,0.3116001]
[1730824729089,27.11435171,168.16,168.14,0.3116001]
[1730824729886,27.11435171,168.17,168.14,0.3116001]
[1730824730098,23.776884,168.18,168.14,0.3116001]
[1730824730418,27.11435171,168.21,168.15,27.11435171]
[1730824731015,27.11435171,168.23,168.17,27.11435171]
[1730824731385,27.11435171,168.25,168.19,27.11435171]
[1730824731707,27.11435171,168.24,168.18,41.97935171]
[1730824732086,27.11435171,168.23,168.18,14.865]
[1730824732493,27.11435171,168.25,168.19,27.11435171]
[1730824732698,27.11435171,168.28,168.22,27.11435171]
[1730824732906,27.11435171,168.27,168.21,27.11435171]
[1730824733095,27.11435171,168.26,168.21,27.11435171]
[1730824733288,27.11435171,168.26,168.2,27.11435171]
[1730824733491,27.11435171,168.28,168.22,27.11435171]
[1730824733693,27.11435171,168.27,168.21,27.11435171]
[1730824734491,27.11435171,168.27,168.22,27.11435171]
[1730824734688,27.11435171,168.27,168.21,27.11435171]
[1730824734994,27.11435171,168.26,168.2,47.92285171]
[1730824735196,27.11435171,168.27,168.21,27.11435171]
[1730824735589,27.11435171,168.28,168.22,27.11435171]
[1730824735990,27.11435171,168.27,168.17,0.1]
[1730824736292,27.11435171,168.23,168.18,5.946]
[1730824736698,27.11435171,168.23,168.17,27.11435171]
[1730824736699,27.11435171,168.22,168.17,20.8117]
[1730824736890,27.11435171,168.21,168.17,20.8117]
[1730824737286,27.11435171,168.2,168.17,14.8654]
[1730824737485,27.11435171,168.21,168.17,14.8654]
[1730824738017,27.11435171,168.2,168.17,14.8654]
[1730824739117,27.11435171,168.2,168.14,27.42595181]
[1730824739327,27.11435171,168.18,168.14,0.3116001]
[1730824739788,27.11435171,168.16,168.14,0.3116001]
[1730824740385,27.11435171,168.21,168.15,27.11435171]
[1730824741011,29.721084,168.23,168.14,21.1273001]
[1730824741214,27.11435171,168.19,168.14,21.1273001]
[1730824741719,27.11435171,168.16,168.14,0.3116001]
[1730824742017,27.11435171,168.2,168.14,48.24185181]
[1730824742209,27.11435171,168.22,168.16,41.98105171]
[1730824742514,27.11435171,168.21,168.16,41.98105171]
[1730824742716,16.4904,168.27,168.16,41.98105171]
[1730824742717,27.11435171,168.24,168.18,27.11435171]
[1730824742892,22.4335,168.27,168.17,20.1]
[1730824742893,27.11435171,168.27,168.17,20.1]
[1730824743095,6.0437,168.3,168.21,27.11435171]
[1730824743431,27.11435171,168.28,168.22,27.11435171]
[1730824743590,27.11435171,168.32,168.26,27.11435171]
[1730824744322,27.11435171,168.35,168.3,27.11435171]
[1730824744495,27.11435171,168.36,168.3,27.11435171]
[1730824745324,27.11435171,168.37,168.31,27.11435171]
[1730824745624,27.11435171,168.36,168.31,5.9414]
[1730824746310,27.11435171,168.37,168.31,47.90925171]
[1730824746503,27.11435171,168.36,168.31,20.7949]
[1730824746715,27.11435171,168.39,168.34,27.11435171]
[1730824746917,0.3116001,168.43,168.38,27.11435171]
[1730824747205,0.3116001,168.43,168.39,27.11435171]
[1730824747419,0.3116001,168.43,168.35,20.0]
[1730824747622,27.11435171,168.42,168.36,33.05375171]
[1730824747798,27.11435171,168.39,168.35,14.8499]
[1730824748000,27.11435171,168.38,168.35,14.8499]
[1730824748215,27.11435171,168.39,168.35,14.8499]
[1730824748413,27.11435171,168.38,168.32,33.05525171]
[1730824748633,27.11435171,168.37,168.32,5.9409]
[1730824749016,27.11435171,168.38,168.32,33.05525171]
[1730824749220,27.11435171,168.38,168.32,47.90785171]
[1730824749720,27.11435171,168.35,168.3,5.9416]
[1730824750025,27.11435171,168.39,168.33,27.11435171]
[1730824750228,27.11435171,168.39,168.3,20.896]
[1730824750229,27.11435171,168.41,168.35,27.11435171]
[1730824751122,27.11435171,168.38,168.33,20.0]
[1730824752013,27.11435171,168.36,168.31,5.9412]
[1730824752408,27.11435171,168.37,168.31,33.05555171]
[1730824752608,27.11435171,168.37,168.31,47.90905171]
[1730824753533,27.11435171,168.36,168.31,14.8535]
[1730824753924,33.39255171,168.4,168.32,27.11435171]
[1730824753925,27.11435171,168.38,168.32,27.11435171]
[1730824754120,27.11435171,168.4,168.34,27.11435171]
[1730824754418,27.11435171,168.42,168.36,27.11435171]
[1730824754816,0.3116001,168.43,168.35,27.11435171]
[1730824754817,27.11435171,168.4,168.35,27.11435171]
[1730824755019,27.11435171,168.39,168.33,27.11435171]
[1730824755227,27.11435171,168.4,168.34,27.11435171]
[1730824755744,27.11435171,168.4,168.34,47.90525171]
[1730824756038,27.11435171,168.39,168.34,20.7909]
[1730824756411,27.11435171,168.4,168.34,47.90525171]
[1730824757730,27.11435171,168.38,168.32,27.11435171]
[1730824757937,27.11435171,168.36,168.3,27.11435171]
[1730824758128,27.11435171,168.35,168.29,47.91175171]
[1730824758841,27.11435171,168.34,168.29,14.8553]
[1730824759341,27.11435171,168.33,168.29,14.8553]
[1730824759724,27.11435171,168.35,168.29,41.96965171]
[1730824759924,27.11435171,168.36,168.3,27.11435171]
[1730824760314,27.11435171,168.33,168.25,6.4861]
[1730824760520,33.05285171,168.4,168.25,6.4861]
[1730824760521,27.11435171,168.31,168.25,54.40225171]
[1730824760739,6.2527,168.35,168.25,20.8018]